lending/lending_fUSD_20251020
["ID","MTS","AMOUNT","RATE_DAILY","PERIOD"]
[391858157,1760926170347,-166.66,0.00013699,2]
[391858158,1760926170373,-279.14135087,0.00013786,2]
[391858161,1760926172564,-333.44444779,0.00013786,2]
[391858162,1760926175845,-508.57332408,0.00013786,2]
[391858163,1760926178181,-60.91893119,0.00013786,2]
[391858164,1760926178203,-131.87484314,0.00013886,2]
[391858174,1760926231052,-198.86127945,0.00013814,2]
[391858175,1760926231851,-504.57872055,0.00013814,2]
[391858176,1760926231862,-34.78515686,0.00013886,2]
[391858177,1760926231873,-75.99326115,0.00013982,2]
[391858178,1760926231885,-167.29748906,0.00013994,2]
[391858179,1760926231894,-159.90493501,0.00013996,2]
[391858180,1760926231904,-4305.39,0.00014007,2]
[391858181,1760926231916,-150.0,0.00014007,2]
[391858182,1760926231925,-166.66,0.00014073,2]
[391858183,1760926231935,-166.66,0.00014261,2]
[391858185,1760926231944,-1200.0,0.00014358,2]
[391858187,1760926231954,-1200.0,0.00014359,2]
[391858189,1760926231963,-300.0,0.00014359,2]
[391858191,1760926231973,-300.0,0.00014359,2]
[391858192,1760926231982,-168.0,0.00014401,2]
[391858193,1760926231992,-168.0,0.00014437,2]
[391858194,1760926232002,-166.66,0.00014448,2]
[391858195,1760926232012,-129.9408405,0.00014549,2]
[391858196,1760926232022,-166.66,0.00014636,2]
[391858197,1760926232031,-832.97836192,0.0001479,2]
[391858198,1760926232041,-1004.92,0.000148,2]
[391858200,1760926232050,-168.0,0.00014805,2]
[391858202,1760926232059,-159.93257,0.0001485,2]
[391858204,1760926232073,-168.0,0.0001486,2]
[391858205,1760926232083,-150.0,0.00014881,2]
[391858206,1760926232092,-1598.99,0.00014882,2]
[391858207,1760926232104,-384.9867759,0.00014882,2]
[391858208,1760926232123,-203.10123687,0.00014882,2]
[391858209,1760926232132,-202.23771067,0.00014882,2]
[391858210,1760926232141,-200.0,0.00014882,2]
[391858211,1760926232151,-1000.0,0.00014882,2]
[391858212,1760926232160,-1000.0,0.00014882,2]
[391858213,1760926232169,-899.48324558,0.00014882,2]
[391858214,1760926232180,-100.51675442,0.00014882,2]
[391858215,1760926232191,-1000.0,0.00014882,2]
[391858216,1760926232200,-1000.0,0.00014882,2]
[391858217,1760926232210,-1000.0,0.00014882,2]
[391858218,1760926232225,-1000.0,0.00014882,2]
[391858219,1760926232241,-1000.0,0.00014882,2]
[391858220,1760926232251,-1000.0,0.00014882,2]
[391858221,1760926232261,-1000.0,0.00014882,2]
[391858222,1760926232270,-1000.0,0.00014882,2]
[391858223,1760926232280,-1000.0,0.00014882,2]
[391858224,1760926232290,-1000.0,0.00014882,2]
[391858225,1760926232309,-1000.0,0.00014882,2]
[391858226,1760926232320,-1000.0,0.00014882,2]
[391858227,1760926232329,-1000.0,0.00014882,2]
[391858228,1760926232339,-1000.0,0.00014882,2]
[391858229,1760926232349,-1000.0,0.00014882,2]
[391858230,1760926232360,-1000.0,0.00014882,2]
[391858231,1760926232370,-1000.0,0.00014882,2]
[391858232,1760926232380,-1000.0,0.00014882,2]
[391858233,1760926232389,-1000.0,0.00014882,2]
[391858234,1760926232399,-1000.0,0.00014899,2]
[391858235,1760926232408,-1000.0,0.00014899,2]
[391858236,1760926232418,-5000.0,0.00014899,2]
[391858237,1760926232428,-2500.0,0.00014899,2]
[391858238,1760926232438,-855.68516646,0.00014899,2]
[391858239,1760926232448,-109.9515929,0.00014899,2]
[391858240,1760926232461,-913.54091702,0.00014899,2]
[391858241,1760926232482,-5889.97194197,0.00014899,2]
[391858242,1760926232492,-160.23366696,0.00014899,2]
[391858243,1760926232502,-206.97969612,0.00014899,2]
[391858244,1760926232511,-2519.717,0.000149,2]
[391858245,1760926232521,-298.6616196,0.000149,2]
[391858246,1760926232531,-1959.58244729,0.00014913,2]
[391858247,1760926232541,-500.0,0.00014973,2]
[391858248,1760926232550,-503.96248325,0.00014973,2]
[391858249,1760926232560,-500.0,0.00014973,2]
[391858250,1760926232569,-500.0,0.00014973,2]
[391858251,1760926232579,-500.0,0.00014973,2]
[391858252,1760926232588,-509.50629388,0.00014973,2]
[391858253,1760926232598,-505.18373847,0.00014973,2]
[391858254,1760926232608,-502.68204026,0.00014973,2]
[391858255,1760926232617,-502.77332014,0.00014973,2]
[391858256,1760926232627,-500.0,0.00014973,2]
[391858257,1760926232637,-500.0,0.00014973,2]
[391858258,1760926232647,-500.0,0.00014973,2]
[391858259,1760926232659,-500.0,0.00014973,2]
[391858260,1760926232669,-705.78963605,0.0001499,2]
[391858261,1760926232679,-215.46671681,0.00014998,2]
[391858262,1760926232692,-303.97356055,0.00014998,2]
[391858263,1760926232702,-232.9061115,0.00014998,2]
[391858264,1760926232711,-8787.0380172,0.00014999,2]
[391858265,1760926232721,-29727.93733201,0.00014999,2]
[391858268,1760926237643,-2188.56659074,0.00014999,2]
[391858269,1760926237655,-666.0,0.00014999,2]
[391858270,1760926237666,-2005.6021978,0.00014999,2]
[391858271,1760926237697,-7736.26465319,0.00014999,2]
[391858272,1760926237773,-543.57890316,0.00014999,2]
[391858273,1760926237806,-408.06080945,0.00014999,2]
[391858348,1760926239638,-32311.63054608,0.00014999,2]
[391858351,1760926240131,-1.6e-07,0.00014999,2]
[391858352,1760926240158,-302.0999999,0.00014999,2]
[391858353,1760926240173,-454358.90151411,0.00014999,2]
[391858354,1760926240182,-151.32341276,0.00014999,2]
[391858355,1760926240191,-150.0,0.00014999,2]
[391858357,1760926240200,-500.0,0.00014999,2]
[391858358,1760926240210,-500.0,0.00014999,2]
[391858359,1760926240219,-500.0,0.00014999,2]
[391858360,1760926240228,-150.0,0.00014999,2]
[391858361,1760926240237,-500.0,0.00014999,2]
[391858362,1760926240246,-224.89424028,0.00014999,2]
[391858363,1760926240255,-150.0,0.00014999,2]
[391858364,1760926240264,-150.0,0.00014999,2]
[391858365,1760926240273,-500.0,0.00014999,2]
[391858366,1760926240282,-717.0,0.00014999,2]
[391858367,1760926240291,-634.0,0.00014999,2]
[391858368,1760926240300,-535.0,0.00014999,2]
[391858369,1760926240310,-500.0,0.00014999,2]
[391858370,1760926240319,-500.0,0.00014999,2]
[391858371,1760926240328,-150.0,0.00014999,2]
[391858372,1760926240338,-500.0,0.00014999,2]
[391858374,1760926240346,-48968.28365455,0.00015,2]
[391858380,1760926242909,-525.63298051,0.00015,2]
[391858381,1760926242920,-29178.09041135,0.00015,2]
[391858387,1760926245749,-262.45576647,0.00015,2]
[391858388,1760926245761,-17601.74336929,0.00015,2]
[391858389,1760926245776,-1500.0,0.00015,2]
[391858390,1760926245805,-269.61644734,0.00015,2]
[391858391,1760926245860,-516.6300001,0.00015,2]
[391858392,1760926245871,-115003.62363759,0.00015,2]
[391858393,1760926246020,-1183.96100502,0.00015,2]
[391858395,1760926375572,2882.66052049,0.00034321,120]
[391858396,1760926444841,206.6111973,0.00034321,120]
[391858398,1760926493051,1000.0,0.00034321,120]
[391858410,1760926780559,2067.0,0.0003433,30]
[391858414,1760926845963,-195.00491881,0.00013763,2]
[391858415,1760926848639,-234.61837252,0.00013763,2]
[391858416,1760926850133,-281.68956733,0.00013763,2]
[391858417,1760926852779,-182.40920469,0.00013763,2]
[391858418,1760926855477,-252.91331211,0.00013763,2]
[391858425,1760926946880,209.46176551,0.0003433,120]
[391858428,1760926995470,-17.68462454,0.00013763,2]
[391858429,1760926995497,-250.0,0.00013813,2]
[391858430,1760926995519,-194.61864195,0.00013863,2]
[391858431,1760927010880,-438.18,0.00013665,2]
[391858432,1760927010904,-9.20477188,0.00013863,2]
[391858434,1760927013114,-193.27236294,0.00013863,2]
[391858435,1760927013139,-26.200092,0.00013863,2]
[391858436,1760927085337,-300.0,0.00013689,3]
[391858437,1760927088425,-173.43176091,0.00013689,3]
[391858438,1760927089921,-192.56823909,0.00013689,3]
[391858439,1760927089948,-6.67236399,0.00013863,2]
[391858440,1760927092052,-162.12754401,0.00013863,2]
[391858441,1760927092075,-188.72440383,0.00013888,2]
[391858442,1760927107917,23068.25018683,0.00034354,30]
[391858443,1760927112988,364.97564057,0.00034354,120]
[391858444,1760927114404,34187.98064017,0.00034354,30]
[391858445,1760927115864,-111.27559617,0.00013888,2]
[391858446,1760927115888,-138.72440383,0.00013894,2]
[391858447,1760927117368,-174.86823909,0.00013894,2]
[391858448,1760927119852,209.72960154,0.00034354,120]
[391858449,1760927128258,314.085594,0.00034354,30]
[391858450,1760927145308,-172.80332904,0.00013824,2]
[391858451,1760927157199,879.31418191,0.00034354,120]
[391858452,1760927160721,177.77904948,0.00034354,90]
[391858453,1760927164961,312.91759025,0.00034354,120]
[391858460,1760927172802,381.091893,0.00034354,120]
[391858461,1760927175616,502.27065124,0.00034354,120]
[391858465,1760927205593,-211.3242838,0.00013794,2]
[391858466,1760927207424,-169.65750788,0.00013794,2]
[391858467,1760927210271,-178.03,0.00013794,2]
[391858468,1760927212955,-166.50730986,0.00013725,2]
[391858469,1760927215071,-302.41972249,0.00013725,2]
[391858470,1760927217869,-96.29667365,0.00013725,2]
[391858471,1760927217897,-59.16601649,0.00013794,2]
[391858472,1760927218093,740.52771309,0.00034354,120]
[391858485,1760927252041,289.9916799,0.00034354,120]
[391858486,1760927256358,330.96114949,0.00034354,120]
[391858487,1760927264361,173.33612098,0.00034354,120]
[391858494,1760927269505,291.43575947,0.00034354,120]
[391858496,1760927271733,6938.27076114,0.00034354,120]
[391858499,1760927279567,182.7790574,0.00034354,120]
[391858500,1760927285015,170.5438277,0.00034354,30]
[391858504,1760927298131,-483.272,0.0001369,2]
[391858505,1760927299704,-300.0,0.0001369,2]
[391858509,1760927305717,361.43985596,0.00034354,120]
[391858513,1760927307956,1305.03869759,0.00034354,120]
[391858515,1760927309991,473.99250831,0.00034354,120]
[391858518,1760927311064,4498.58653008,0.00034354,30]
[391858519,1760927311466,692.59492229,0.00034354,120]
[391858524,1760927313009,255.49051492,0.00034354,120]
[391858530,1760927316635,400.08926206,0.00034354,120]
[391858542,1760927324007,380.53765753,0.00034354,120]
[391858544,1760927325401,515.18516532,0.00034354,120]
[391858569,1760927370296,-286.21739958,0.00013638,2]
[391858675,1760927415315,-216.20232242,0.00013638,2]
[391858676,1760927415337,-250.0,0.00013707,2]
[391858677,1760927415360,-195.0,0.00013711,2]
[391858678,1760927415382,-195.0,0.00013725,2]
[391858679,1760927415404,-1192.860278,0.00013725,2]
[391858680,1760927416922,-164.72,0.00013725,2]
[391858681,1760927418412,-215.2591853,0.00013725,2]
[391858683,1760927422069,-313.21870699,0.00013725,2]
[391858684,1760927423584,-187.79262631,0.00013725,2]
[391858685,1760927430441,-183.31,0.00013725,2]
[391858701,1760927431926,-242.8392034,0.00013725,2]
[391858702,1760927431936,-300.0,0.00013759,2]
[391858703,1760927431946,-161.06799049,0.00013794,2]
[391858704,1760927431955,-2186.40735708,0.00013894,2]
[391858705,1760927431966,-300.0,0.00013894,2]
[391858706,1760927431975,-300.0,0.00013899,2]
[391858707,1760927431984,-1200.0,0.00013899,2]
[391858708,1760927431994,-250.0,0.00013899,2]
[391858709,1760927432003,-300.0,0.00013899,2]
[391858710,1760927432013,-19648.92851411,0.000139,2]
[391858711,1760927432022,-200.0,0.00014138,2]
[391858712,1760927432031,-150.0,0.00014153,2]
[391858713,1760927432041,-500.0,0.00014153,2]
[391858714,1760927432050,-500.0,0.00014153,2]
[391858715,1760927432059,-500.0,0.00014153,2]
[391858716,1760927432069,-558.64489523,0.00014153,2]
[391858717,1760927432082,-500.0,0.00014153,2]
[391858718,1760927432092,-1718.88,0.00014154,2]
[391858719,1760927432102,-382.58641583,0.00014154,2]
[391858720,1760927432113,-200.0,0.00014154,2]
[391858721,1760927432122,-225.78066204,0.00014154,2]
[391858722,1760927432132,-151.0,0.00014154,2]
[391858723,1760927432142,-200.0,0.00014154,2]
[391858725,1760927432151,-151.0,0.00014154,2]
[391858727,1760927432160,-151.0,0.00014154,2]
[391858729,1760927432170,-151.0,0.00014154,2]
[391858731,1760927432179,-151.0,0.00014154,2]
[391858733,1760927432188,-151.0,0.00014154,2]
[391858734,1760927432198,-151.0,0.00014154,2]
[391858735,1760927432207,-181.71397105,0.00014154,2]
[391858736,1760927432216,-151.0,0.00014154,2]
[391858737,1760927432226,-151.0,0.00014154,2]
[391858738,1760927432235,-151.0,0.00014154,2]
[391858739,1760927432245,-151.0,0.00014154,2]
[391858741,1760927432254,-151.0,0.00014154,2]
[391858743,1760927432264,-151.0,0.00014154,2]
[391858745,1760927432274,-151.0,0.00014154,2]
[391858747,1760927432283,-151.0,0.00014154,2]
[391858749,1760927432292,-151.0,0.00014154,2]
[391858751,1760927432301,-151.0,0.00014154,2]
[391858753,1760927432310,-200.0,0.00014154,2]
[391858755,1760927432319,-151.0,0.00014154,2]
[391858757,1760927432329,-151.0,0.00014154,2]
[391858758,1760927432338,-151.0,0.00014154,2]
[391858759,1760927432347,-151.0,0.00014154,2]
[391858760,1760927432357,-151.0,0.00014154,2]
[391858761,1760927432367,-151.0,0.00014154,2]
[391858762,1760927432376,-151.0,0.00014154,2]
[391858763,1760927432386,-273.85065369,0.00014154,2]
[391858764,1760927432395,-17470.42,0.00014163,2]
[391858765,1760927432405,-1500.0,0.00014178,2]
[391858766,1760927432415,-588.55432349,0.00014233,2]
[391858767,1760927432424,-500.0,0.00014233,2]
[391858768,1760927432433,-500.0,0.00014233,2]
[391858769,1760927432442,-500.0,0.00014233,2]
[391858770,1760927432451,-250.0,0.00014233,2]
[391858771,1760927432460,-500.0,0.00014233,2]
[391858772,1760927432469,-500.0,0.00014233,2]
[391858773,1760927432478,-228.49395274,0.00014233,2]
[391858774,1760927432488,-500.0,0.00014233,2]
[391858775,1760927432499,-274.66412228,0.00014233,2]
[391858776,1760927432508,-500.0,0.00014233,2]
[391858777,1760927432517,-500.0,0.00014233,2]
[391858778,1760927432526,-500.0,0.00014233,2]
[391858779,1760927432535,-500.0,0.00014233,2]
[391858780,1760927432544,-500.0,0.00014233,2]
[391858781,1760927432554,-500.0,0.00014233,2]
[391858782,1760927432564,-500.0,0.00014233,2]
[391858783,1760927432573,-500.0,0.00014233,2]
[391858784,1760927432582,-500.0,0.00014233,2]
[391858785,1760927432592,-500.0,0.00014233,2]
[391858786,1760927432601,-500.0,0.00014233,2]
[391858787,1760927432610,-500.0,0.00014233,2]
[391858788,1760927432620,-500.0,0.00014233,2]
[391858789,1760927432629,-500.0,0.00014233,2]
[391858790,1760927432638,-500.0,0.00014233,2]
[391858791,1760927432648,-500.0,0.00014233,2]
[391858792,1760927432658,-500.0,0.00014233,2]
[391858793,1760927432668,-500.0,0.00014233,2]
[391858794,1760927432677,-500.0,0.00014233,2]
[391858795,1760927432688,-500.0,0.00014233,2]
[391858796,1760927432699,-500.0,0.00014233,2]
[391858797,1760927432708,-500.0,0.00014233,2]
[391858798,1760927432717,-500.0,0.00014233,2]
[391858799,1760927432726,-500.0,0.00014233,2]
[391858800,1760927432740,-201.01012298,0.00014233,2]
[391858801,1760927432750,-500.0,0.00014233,2]
[391858802,1760927432759,-250.0,0.00014233,2]
[391858803,1760927432768,-250.0,0.00014233,2]
[391858804,1760927432779,-250.0,0.00014233,2]
[391858805,1760927432788,-500.0,0.00014233,2]
[391858806,1760927432798,-250.0,0.00014233,2]
[391858807,1760927432810,-263.83576534,0.00014233,2]
[391858808,1760927432819,-500.0,0.00014233,2]
[391858809,1760927432829,-250.0,0.00014233,2]
[391858810,1760927432838,-500.0,0.00014233,2]
[391858811,1760927432851,-250.0,0.00014233,2]
[391858812,1760927432861,-500.0,0.00014233,2]
[391858813,1760927432871,-250.0,0.00014233,2]
[391858814,1760927432881,-500.0,0.00014233,2]
[391858815,1760927432891,-500.0,0.00014233,2]
[391858816,1760927432901,-578.20924308,0.00014233,2]
[391858817,1760927432910,-250.0,0.00014233,2]
[391858818,1760927432919,-500.0,0.00014233,2]
[391858819,1760927432928,-250.0,0.00014233,2]
[391858820,1760927432938,-500.0,0.00014233,2]
[391858821,1760927432947,-250.0,0.00014233,2]
[391858822,1760927432956,-500.0,0.00014233,2]
[391858823,1760927432966,-250.0,0.00014233,2]
[391858824,1760927432975,-500.0,0.00014233,2]
[391858825,1760927432985,-500.0,0.00014233,2]
[391858826,1760927432995,-286.2957429,0.00014233,2]
[391858827,1760927433004,-500.0,0.00014233,2]
[391858828,1760927433015,-500.0,0.00014233,2]
[391858829,1760927433026,-500.0,0.00014233,2]
[391858830,1760927433036,-500.0,0.00014233,2]
[391858831,1760927433045,-250.0,0.00014233,2]
[391858832,1760927433058,-500.0,0.00014233,2]
[391858833,1760927433068,-1000.0,0.00014233,2]
[391858834,1760927433078,-374.36360391,0.00014233,2]
[391858835,1760927433087,-500.0,0.00014233,2]
[391858836,1760927433097,-1000.0,0.00014233,2]
[391858837,1760927433107,-500.0,0.00014233,2]
[391858838,1760927433117,-1000.0,0.00014233,2]
[391858839,1760927433127,-500.0,0.00014233,2]
[391858840,1760927433136,-1000.0,0.00014233,2]
[391858841,1760927433146,-500.0,0.00014233,2]
[391858842,1760927433156,-1000.0,0.00014233,2]
[391858843,1760927433166,-500.0,0.00014233,2]
[391858844,1760927433179,-1000.0,0.00014233,2]
[391858845,1760927433189,-500.0,0.00014233,2]
[391858846,1760927433198,-1000.0,0.00014233,2]
[391858847,1760927433208,-1000.0,0.00014233,2]
[391858848,1760927433218,-1000.0,0.00014233,2]
[391858849,1760927433227,-1000.0,0.00014233,2]
[391858850,1760927433236,-1000.0,0.00014233,2]
[391858851,1760927433246,-869.52519842,0.0001439,2]
[391858852,1760927433255,-1718.88,0.00014428,2]
[391858853,1760927433265,-226.17,0.00014455,2]
[391858854,1760927433277,-365.0,0.0001459,2]
[391858855,1760927433439,-388.0,0.00014604,2]
[391858856,1760927433449,-555.0,0.00014619,2]
[391858857,1760927433460,-165.18,0.00014619,2]
[391858858,1760927433470,-666.0,0.00014634,2]
[391858859,1760927433481,-365.0,0.00014634,2]
[391858860,1760927433490,-1718.88,0.00014702,2]
[391858861,1760927433500,-201.31178177,0.00014702,2]
[391858862,1760927433510,-201.50456686,0.00014702,2]
[391858863,1760927433519,-151.0,0.00014762,2]
[391858864,1760927433530,-151.0,0.00014763,2]
[391858865,1760927433540,-151.0,0.00014764,2]
[391858866,1760927433551,-151.0,0.00014765,2]
[391858867,1760927433564,-890.62217382,0.00014786,2]
[391858868,1760927433574,-1000.0,0.000148,2]
[391858869,1760927433584,-159.93257,0.0001485,2]
[391858870,1760927433594,-511.0,0.00014857,2]
[391858871,1760927433603,-888.0,0.00014857,2]
[391858872,1760927433614,-365.0,0.00014858,2]
[391858873,1760927433623,-158.65956157,0.0001488,2]
[391858874,1760927433633,-158.65956157,0.00014887,2]
[391858875,1760927433642,-158.65956157,0.00014893,2]
[391858876,1760927433651,-6619.8953,0.00014897,2]
[391858877,1760927433661,-1005.21912915,0.00014898,2]
[391858878,1760927433671,-155.0,0.00014898,2]
[391858879,1760927433681,-1000.0,0.00014899,2]
[391858880,1760927433691,-1000.0,0.00014899,2]
[391858881,1760927433700,-2500.0,0.00014899,2]
[391858882,1760927433710,-6222.11800671,0.00014899,2]
[391858883,1760927433719,-1574.70702037,0.00014899,2]
[391858884,1760927433730,-160.95531937,0.00014899,2]
[391858885,1760927433742,-1574.70702028,0.00014899,2]
[391858886,1760927433751,-1574.70702028,0.00014899,2]
[391858887,1760927433761,-1574.70702028,0.00014899,2]
[391858888,1760927433770,-1574.70702028,0.00014899,2]
[391858889,1760927433781,-1574.70702028,0.000149,2]
[391858890,1760927433791,-1574.70702028,0.000149,2]
[391858891,1760927433800,-1574.70702028,0.000149,2]
[391858892,1760927433810,-1574.70702028,0.000149,2]
[391858893,1760927433819,-2208.7922,0.000149,2]
[391858894,1760927433828,-1574.70702028,0.000149,2]
[391858895,1760927433838,-5000.0,0.000149,2]
[391858896,1760927433849,-288.68985798,0.000149,2]
[391858897,1760927433859,-202.8388565,0.000149,2]
[391858898,1760927433868,-309.81,0.00014948,2]
[391858899,1760927433878,-577.05,0.00014948,2]
[391858900,1760927433888,-3589.1579827,0.00014966,2]
[391858901,1760927433897,-500.0,0.00014973,2]
[391858902,1760927433907,-500.0,0.00014973,2]
[391858903,1760927433919,-557.55436554,0.00014973,2]
[391858904,1760927433930,-500.0,0.00014973,2]
[391858905,1760927433940,-503.14205494,0.00014973,2]
[391858906,1760927433950,-502.36297036,0.00014973,2]
[391858907,1760927433960,-500.0,0.00014973,2]
[391858908,1760927433970,-500.0,0.00014973,2]
[391858909,1760927433980,-150.12458609,0.00014973,2]
[391858910,1760927433989,-1718.88,0.00014976,2]
[391858911,1760927434000,-476.64816733,0.00014978,2]
[391858912,1760927434009,-143655.0616967,0.00014979,2]
[391858913,1760927434019,-159.93258,0.0001498,2]
[391858914,1760927434028,-505.58598414,0.00014985,2]
[391858915,1760927434037,-208.12479021,0.0001499,2]
[391858916,1760927434046,-208.12479021,0.0001499,2]
[391858917,1760927434056,-2398.1340625,0.00014997,2]
[391858918,1760927434065,-316.0,0.00014998,2]
[391858919,1760927434075,-8949.8766335,0.00014999,2]
[391858920,1760927434085,-26451.3504588,0.00014999,2]
[391858921,1760927434095,-1127.851633,0.00014999,2]
[391858922,1760927434105,-307428.2193728,0.00014999,2]
[391858923,1760927434115,-500.0,0.00014999,2]
[391858924,1760927434124,-500.0,0.00014999,2]
[391858925,1760927434134,-500.0,0.00014999,2]
[391858926,1760927434144,-150.0,0.00014999,2]
[391858927,1760927434153,-500.0,0.00014999,2]
[391858928,1760927434163,-687.0,0.00014999,2]
[391858929,1760927434173,-607.0,0.00014999,2]
[391858930,1760927434182,-701.97599175,0.00014999,2]
[391858931,1760927434192,-338753.27224767,0.00015,2]
[391858932,1760927434210,-5830.02290771,0.00015,2]
[391858933,1760927434225,-5456.45275685,0.00015,2]
[391858934,1760927434237,-2448138.98666565,0.00015,2]
[391858935,1760927434249,-215979.31040321,0.00015,2]
[391858936,1760927434262,-246939.69103487,0.00015,2]
[391858937,1760927434273,-494033.93210704,0.00015,2]
[391858938,1760927434285,-1004.41808677,0.00015,2]
[391858941,1760927437805,-233.541,0.00014897,2]
[391858942,1760927437817,-158.65956157,0.000149,2]
[391858943,1760927437827,-236.53188575,0.000149,2]
[391858944,1760927437838,-275.06062848,0.000149,2]
[391858945,1760927437850,-325.39713477,0.000149,2]
[391858946,1760927437860,-9194.22821411,0.00015,2]
[391858947,1760927437871,-1300.0,0.00015,2]
[391858948,1760927437882,-7462.55137072,0.00015,2]
[391858949,1760927437893,-1854.42895966,0.00015,2]
[391858950,1760927437916,-99365.90923161,0.00015,2]
[391858951,1760927437973,-5232.9562746,0.00015,2]
[391858952,1760927437984,-4481.04660325,0.00015,2]
[391858957,1760927438155,-423.81024343,0.00015,2]
[391858959,1760927438167,-917.54511471,0.00015,2]
[391858961,1760927438178,-4712.62579405,0.00015,2]
[391858963,1760927438190,-1027.9318585,0.00015,2]
[391859132,1760927439936,-1034.355,0.00015,2]
[391859168,1760927440287,-1.6e-07,0.00015,2]
[391859169,1760927440298,-543.3,0.00015,2]
[391859170,1760927440309,-1847.09999977,0.00015,2]
[391859171,1760927440321,-3910.75,0.00015,2]
[391859172,1760927440332,-15366.72385975,0.00015,2]
[391859173,1760927440342,-169530.51011939,0.00015,2]
[391859174,1760927440372,-1551.79822102,0.00015,2]
[391859176,1760927440383,-191449.31214019,0.00015,2]
[391859178,1760927440394,-77995.28534903,0.00015,2]
[391859179,1760927440408,-59475.72372235,0.00015,2]
[391859183,1760927443007,-151.0,0.00014786,2]
[391859184,1760927443017,-355.92861619,0.00015,2]
[391859185,1760927443117,-1183.0,0.00015,2]
[391859267,1760927595373,-326.7660111,0.00013699,2]
[391859280,1760927835964,-51.5939889,0.00013699,2]
[391859281,1760927835987,-195.0,0.00013738,2]
[391859282,1760927836008,-185.50132868,0.00013738,2]
[391859288,1760927920456,310.75735653,0.00034376,30]
[391859290,1760928030329,-64.49867132,0.00013738,2]
[391859291,1760928030350,-195.0,0.00013778,2]
[391859292,1760928030371,-40.50132868,0.00013815,2]
[391859293,1760928032428,-329.49258317,0.00013739,2]
[391859294,1760928035595,-250.62429644,0.00013739,2]
[391859295,1760928037115,-158.38295035,0.00013739,2]
[391859296,1760928038638,-250.29,0.00013739,2]
[391859297,1760928042101,-250.0,0.00013739,2]
[391859298,1760928043544,-187.27479899,0.00013739,2]
[391859299,1760928045684,-188.02723125,0.00013739,2]
[391859300,1760928048471,-280.72375127,0.00013739,2]
[391859301,1760928051837,-410.09913291,0.00013739,2]
[391859302,1760928053540,-219.67503196,0.00013739,2]
[391859303,1760928055914,-226.41022366,0.00013739,2]
[391859304,1760928055937,-66.05436434,0.00013815,2]
[391859305,1760928057949,-185.51545272,0.00013815,2]
[391859306,1760928060903,-166.23869356,0.00013815,2]
[391859307,1760928062868,-161.93299577,0.00013815,2]
[391859308,1760928064471,-176.14,0.00013815,2]
[391859309,1760928135931,-1235.89,0.00013699,2]
[391859310,1760928137964,-186.59130588,0.00013699,2]
[391859311,1760928140628,-291.11182637,0.00013699,2]
[391859312,1760928142238,-336.34267382,0.00013699,2]
[391859313,1760928145099,-247.61503877,0.00013699,2]
[391859314,1760928148292,-191.14,0.00013699,2]
[391859315,1760928149814,-183.98771662,0.0001369,2]
[391859316,1760928149836,-63.21143854,0.00013699,2]
[391859317,1760928152989,-181.53607269,0.00013699,2]
[391859318,1760928156255,-449.8138934,0.00013699,2]
[391859319,1760928157793,-166.66,0.00013699,2]
[391859320,1760928161466,-167.64193459,0.00013699,2]
[391859321,1760928164168,-166.66,0.00013699,2]
[391859322,1760928180388,-186.59130588,0.00013699,2]
[391859323,1760928182045,-256.97513188,0.00013699,2]
[391859324,1760928184216,-161.63263787,0.00013699,2]
[391859325,1760928185914,-545.78975541,0.00013699,2]
[391859326,1760928189975,-195.62116896,0.00013699,2]
[391859327,1760928194154,-300.0,0.00013699,2]